[Event "Titled Tuesday Blitz April 05 Late 2022"]
[White "Soysal, Serkan"]
[Black "Jarocka, Liwia"]
[WhiteFideId "6349250"]
[BlackFideId "21807558"]
[WhiteElo "2584"]
[BlackElo "2367"]
[Result "1/2-1/2"]
[Round "06"]
[TimeControl "180+1"]
[Date "2022.04.06"]
[WhiteClock "0:00:03"]
[BlackClock "0:01:24"]

1. Nf3 {[%clk 0:03:00]}  c5 {[%clk 0:02:59]} 2. e4 {[%clk 0:02:58]}  d6 {[%clk 0:02:58]} 3. d4 {[%clk 0:02:50]}  cxd4 {[%clk 0:02:59]} 4. Nxd4 {[%clk 0:02:45]}  Nf6 {[%clk 0:02:59]} 5. f3 {[%clk 0:02:45]}  e5 {[%clk 0:02:56]} 6. Bb5+ {[%clk 0:02:38]}  Bd7 {[%clk 0:02:53]} 7. Bxd7+ {[%clk 0:02:37]}  Qxd7 {[%clk 0:02:53]} 8. Ne2 {[%clk 0:02:29]}  d5 {[%clk 0:02:53]} 9. exd5 {[%clk 0:02:22]}  Qxd5 {[%clk 0:02:52]} 10. Qxd5 {[%clk 0:02:11]}  Nxd5 {[%clk 0:02:53]} 11. a3 {[%clk 0:01:59]}  Nc6 {[%clk 0:02:51]} 12. Nbc3 {[%clk 0:01:49]}  Nxc3 {[%clk 0:02:49]} 13. Nxc3 {[%clk 0:01:50]}  O-O-O {[%clk 0:02:45]} 14. Be3 {[%clk 0:01:47]}  Be7 {[%clk 0:02:27]} 15. Rd1 {[%clk 0:01:36]}  f5 {[%clk 0:02:27]} 16. Nd5 {[%clk 0:01:28]}  Bf6 {[%clk 0:02:23]} 17. Nxf6 {[%clk 0:01:24]}  gxf6 {[%clk 0:02:24]} 18. g3 {[%clk 0:01:16]}  b6 {[%clk 0:02:21]} 19. Kf2 {[%clk 0:01:09]}  Kc7 {[%clk 0:02:20]} 20. Bh6 {[%clk 0:00:52]}  Rxd1 {[%clk 0:02:15]} 21. Rxd1 {[%clk 0:00:52]}  Rd8 {[%clk 0:02:15]} 22. Rxd8 {[%clk 0:00:47]}  Kxd8 {[%clk 0:02:16]} 23. Be3 {[%clk 0:00:45]}  Kd7 {[%clk 0:02:15]} 24. Ke2 {[%clk 0:00:43]}  Ke6 {[%clk 0:02:15]} 25. Kd3 {[%clk 0:00:42]}  b5 {[%clk 0:02:10]} 26. c4 {[%clk 0:00:39]}  a6 {[%clk 0:02:10]} 27. cxb5 {[%clk 0:00:35]}  axb5 {[%clk 0:02:10]} 28. b3 {[%clk 0:00:36]}  Kd5 {[%clk 0:02:10]} 29. a4 {[%clk 0:00:34]}  e4+ {[%clk 0:02:03]} 30. fxe4+ {[%clk 0:00:33]}  fxe4+ {[%clk 0:02:04]} 31. Kc3 {[%clk 0:00:29]}  bxa4 {[%clk 0:01:55]} 32. bxa4 {[%clk 0:00:29]}  Ne5 {[%clk 0:01:55]} 33. a5 {[%clk 0:00:20]}  Nf3 {[%clk 0:01:53]} 34. a6 {[%clk 0:00:20]}  Kc6 {[%clk 0:01:53]} 35. h4 {[%clk 0:00:20]}  f5 {[%clk 0:01:39]} 36. a7 {[%clk 0:00:17]}  Kb7 {[%clk 0:01:39]} 37. Kc4 {[%clk 0:00:17]}  Nh2 {[%clk 0:01:27]} 38. Kd4 {[%clk 0:00:16]}  Nf1 {[%clk 0:01:27]} 39. Bf4 {[%clk 0:00:15]}  Kxa7 {[%clk 0:01:27]} 40. g4 {[%clk 0:00:04]}  fxg4 {[%clk 0:01:27]} 41. Kxe4 {[%clk 0:00:04]}  Kb7 {[%clk 0:01:24]} 42. h5 {[%clk 0:00:02]}  Kc6 {[%clk 0:01:24]} 43. Kf5 {[%clk 0:00:02]}  g3 {[%clk 0:01:23]} 44. Bxg3 {[%clk 0:00:02]}  Nxg3+ {[%clk 0:01:23]} 45. Kg5 {[%clk 0:00:03]}  Kd5 {[%clk 0:01:23]} 46. Kh6 {[%clk 0:00:03]}  Nxh5 {[%clk 0:01:24]} 47. Kxh7 {[%clk 0:00:03]} 1/2-1/2


[Site "https://www.chess.com"]

[Event "Titled Tuesday Blitz April 05 Late 2022"]
[White "Spata, German"]
[Black "Sanchez Alvares, Kelvin Antonio"]
[WhiteFideId "113026"]
[BlackFideId "3906680"]
[WhiteElo "2591"]
[BlackElo "2501"]
[Result "1/2-1/2"]
[Round "06"]
[TimeControl "180+1"]
[Date "2022.04.06"]
[WhiteClock "0:00:10"]
[BlackClock "0:00:22"]

1. e4 {[%clk 0:02:59]}  e5 {[%clk 0:02:59]} 2. Nc3 {[%clk 0:02:58]}  Nc6 {[%clk 0:02:59]} 3. Bc4 {[%clk 0:02:53]}  Bc5 {[%clk 0:02:58]} 4. d3 {[%clk 0:02:53]}  Nf6 {[%clk 0:02:56]} 5. Nf3 {[%clk 0:02:49]}  d6 {[%clk 0:02:56]} 6. Bg5 {[%clk 0:02:48]}  h6 {[%clk 0:02:56]} 7. Bxf6 {[%clk 0:02:46]}  Qxf6 {[%clk 0:02:55]} 8. Nd5 {[%clk 0:02:44]}  Qd8 {[%clk 0:02:55]} 9. c3 {[%clk 0:02:41]}  Bg4 {[%clk 0:02:52]} 10. h3 {[%clk 0:02:38]}  Be6 {[%clk 0:02:51]} 11. b4 {[%clk 0:02:35]}  Bb6 {[%clk 0:02:51]} 12. a4 {[%clk 0:02:31]}  a5 {[%clk 0:02:44]} 13. b5 {[%clk 0:02:28]}  Ne7 {[%clk 0:02:36]} 14. Nxb6 {[%clk 0:02:21]}  cxb6 {[%clk 0:02:36]} 15. Bxe6 {[%clk 0:02:10]}  fxe6 {[%clk 0:02:37]} 16. O-O {[%clk 0:02:05]}  O-O {[%clk 0:02:37]} 17. c4 {[%clk 0:02:01]}  Ng6 {[%clk 0:02:35]} 18. g3 {[%clk 0:02:00]}  Qe7 {[%clk 0:02:29]} 19. Nh2 {[%clk 0:01:47]}  Rf6 {[%clk 0:02:20]} 20. Ng4 {[%clk 0:01:45]}  Rf7 {[%clk 0:02:19]} 21. Qe2 {[%clk 0:01:36]}  Raf8 {[%clk 0:02:18]} 22. Qe3 {[%clk 0:01:34]}  Rf3 {[%clk 0:02:09]} 23. Qxb6 {[%clk 0:01:32]}  h5 {[%clk 0:01:50]} 24. Nh2 {[%clk 0:01:24]}  Rxd3 {[%clk 0:01:49]} 25. Rad1 {[%clk 0:01:24]}  Rxd1 {[%clk 0:01:42]} 26. Rxd1 {[%clk 0:01:25]}  h4 {[%clk 0:01:43]} 27. Qxd6 {[%clk 0:01:08]}  hxg3 {[%clk 0:01:38]} 28. fxg3 {[%clk 0:01:08]}  Qg5 {[%clk 0:01:37]} 29. Qxe6+ {[%clk 0:00:58]}  Kh7 {[%clk 0:01:37]} 30. Qg4 {[%clk 0:00:49]}  Qe3+ {[%clk 0:01:34]} 31. Kh1 {[%clk 0:00:50]}  Rf6 {[%clk 0:01:09]} 32. Qh5+ {[%clk 0:00:38]}  Kg8 {[%clk 0:01:08]} 33. Qg4 {[%clk 0:00:20]}  Kh7 {[%clk 0:01:06]} 34. Rf1 {[%clk 0:00:16]}  Rxf1+ {[%clk 0:00:23]} 35. Nxf1 {[%clk 0:00:17]}  Qf2 {[%clk 0:00:23]} 36. Qh5+ {[%clk 0:00:08]}  Kg8 {[%clk 0:00:22]} 37. Qxg6 {[%clk 0:00:09]}  Qxf1+ {[%clk 0:00:21]} 38. Kh2 {[%clk 0:00:09]}  Qf2+ {[%clk 0:00:21]} 39. Kh1 {[%clk 0:00:10]}  Qf1+ {[%clk 0:00:21]} 40. Kh2 {[%clk 0:00:10]}  Qf2+ {[%clk 0:00:22]} 41. Kh1 {[%clk 0:00:10]}  Qf1+ {[%clk 0:00:22]} 1/2-1/2


[Site "https://www.chess.com"]

[Event "Titled Tuesday Blitz April 05 Late 2022"]
[White "Stoenescu, Radu"]
[Black "Ardila, Oscar Humberto"]
[WhiteFideId "610143"]
[BlackFideId "4404742"]
[WhiteElo "1934"]
[BlackElo "1983"]
[Result "0-1"]
[Round "06"]
[TimeControl "180+1"]
[Date "2022.04.06"]
[WhiteClock "0:00:03"]
[BlackClock "0:00:22"]

1. e4 {[%clk 0:03:00]}  e5 {[%clk 0:02:59]} 2. Nf3 {[%clk 0:03:00]}  Nf6 {[%clk 0:02:58]} 3. Nxe5 {[%clk 0:02:59]}  d6 {[%clk 0:02:58]} 4. Nxf7 {[%clk 0:02:59]}  Kxf7 {[%clk 0:02:58]} 5. d4 {[%clk 0:02:59]}  c5 {[%clk 0:02:57]} 6. Bc4+ {[%clk 0:02:57]}  Be6 {[%clk 0:02:57]} 7. Bxe6+ {[%clk 0:02:55]}  Kxe6 {[%clk 0:02:58]} 8. d5+ {[%clk 0:02:56]}  Kf7 {[%clk 0:02:57]} 9. Nc3 {[%clk 0:02:52]}  Nbd7 {[%clk 0:02:55]} 10. f4 {[%clk 0:02:47]}  Be7 {[%clk 0:02:50]} 11. O-O {[%clk 0:02:44]}  Re8 {[%clk 0:02:44]} 12. g4 {[%clk 0:02:41]}  Nb6 {[%clk 0:02:15]} 13. g5 {[%clk 0:02:38]}  Nfd7 {[%clk 0:02:15]} 14. Qh5+ {[%clk 0:02:28]}  Kg8 {[%clk 0:02:14]} 15. f5 {[%clk 0:02:13]}  Nf8 {[%clk 0:01:44]} 16. Qh4 {[%clk 0:01:28]}  Nbd7 {[%clk 0:01:38]} 17. Bf4 {[%clk 0:01:11]}  a6 {[%clk 0:01:36]} 18. Rae1 {[%clk 0:01:08]}  b5 {[%clk 0:01:35]} 19. e5 {[%clk 0:01:00]}  dxe5 {[%clk 0:01:35]} 20. Bxe5 {[%clk 0:01:01]}  Nxe5 {[%clk 0:01:35]} 21. Rxe5 {[%clk 0:01:01]}  Bd6 {[%clk 0:01:33]} 22. Re6 {[%clk 0:00:50]}  Qd7 {[%clk 0:01:02]} 23. Ne4 {[%clk 0:00:47]}  Be5 {[%clk 0:00:59]} 24. f6 {[%clk 0:00:21]}  Rxe6 {[%clk 0:00:57]} 25. dxe6 {[%clk 0:00:13]}  Qxe6 {[%clk 0:00:57]} 26. fxg7 {[%clk 0:00:12]}  Bxg7 {[%clk 0:00:48]} 27. Nf6+ {[%clk 0:00:10]}  Bxf6 {[%clk 0:00:47]} 28. gxf6 {[%clk 0:00:09]}  Ng6 {[%clk 0:00:41]} 29. Qh6 {[%clk 0:00:05]}  Qf7 {[%clk 0:00:36]} 30. h4 {[%clk 0:00:05]}  Rf8 {[%clk 0:00:26]} 31. h5 {[%clk 0:00:04]}  Kh8 {[%clk 0:00:22]} 32. hxg6 {[%clk 0:00:03]}  Qxg6+ {[%clk 0:00:22]} 0-1


[Site "https://www.chess.com"]

[Event "Titled Tuesday Blitz April 05 Late 2022"]
[White "Svane, Frederik"]
[Black "Mikhailov, Viacheslav"]
[WhiteFideId "12923044"]
[BlackFideId "4187369"]
[WhiteElo "2459"]
[BlackElo "2381"]
[Result "1/2-1/2"]
[Round "06"]
[TimeControl "180+1"]
[Date "2022.04.05"]
[WhiteClock "0:01:06"]
[BlackClock "0:02:24"]

1. e4 {[%clk 0:03:00]}  d6 {[%clk 0:02:59]} 2. d4 {[%clk 0:03:00]}  Nf6 {[%clk 0:02:59]} 3. Nd2 {[%clk 0:03:00]}  g6 {[%clk 0:03:00]} 4. Ngf3 {[%clk 0:02:59]}  Bg7 {[%clk 0:03:00]} 5. Bd3 {[%clk 0:03:00]}  O-O {[%clk 0:03:00]} 6. O-O {[%clk 0:03:00]}  Bg4 {[%clk 0:03:01]} 7. h3 {[%clk 0:03:00]}  Bxf3 {[%clk 0:03:01]} 8. Nxf3 {[%clk 0:03:01]}  Nc6 {[%clk 0:03:01]} 9. d5 {[%clk 0:03:00]}  Nb8 {[%clk 0:03:00]} 10. Re1 {[%clk 0:02:57]}  c6 {[%clk 0:02:59]} 11. Bf1 {[%clk 0:02:49]}  Nbd7 {[%clk 0:02:58]} 12. Bg5 {[%clk 0:02:33]}  Re8 {[%clk 0:02:54]} 13. c3 {[%clk 0:02:27]}  Qb6 {[%clk 0:02:49]} 14. Qd2 {[%clk 0:02:12]}  cxd5 {[%clk 0:02:39]} 15. exd5 {[%clk 0:02:12]}  Qa5 {[%clk 0:02:39]} 16. Bc4 {[%clk 0:01:54]}  Rac8 {[%clk 0:02:36]} 17. Bb3 {[%clk 0:01:49]}  Nc5 {[%clk 0:02:36]} 18. Bc2 {[%clk 0:01:43]}  Ncd7 {[%clk 0:02:24]} 19. Bb3 {[%clk 0:01:29]}  Nc5 {[%clk 0:02:24]} 20. Bc2 {[%clk 0:01:22]}  Ncd7 {[%clk 0:02:24]} 21. Bb3 {[%clk 0:01:06]} 1/2-1/2


[Site "https://www.chess.com"]

[Event "Titled Tuesday Blitz April 05 Late 2022"]
[White "Swicarz, Maciej"]
[Black "Putri, Regita Desyari"]
[WhiteFideId "1113585"]
[BlackFideId "7109083"]
[WhiteElo "2521"]
[BlackElo "2316"]
[Result "1-0"]
[Round "06"]
[TimeControl "180+1"]
[Date "2022.04.06"]
[WhiteClock "0:01:38"]
[BlackClock "0:01:27"]

1. c4 {[%clk 0:03:00]}  Nf6 {[%clk 0:02:59]} 2. Nc3 {[%clk 0:03:00]}  e5 {[%clk 0:02:58]} 3. Nf3 {[%clk 0:02:59]}  Nc6 {[%clk 0:02:57]} 4. e4 {[%clk 0:03:00]}  Bb4 {[%clk 0:02:57]} 5. d3 {[%clk 0:02:59]}  O-O {[%clk 0:02:57]} 6. a3 {[%clk 0:02:51]}  Bxc3+ {[%clk 0:02:52]} 7. bxc3 {[%clk 0:02:51]}  d6 {[%clk 0:02:52]} 8. g3 {[%clk 0:02:49]}  h6 {[%clk 0:02:51]} 9. Rb1 {[%clk 0:02:47]}  Nh7 {[%clk 0:02:50]} 10. Bg2 {[%clk 0:02:46]}  Rb8 {[%clk 0:02:51]} 11. O-O {[%clk 0:02:45]}  Be6 {[%clk 0:02:50]} 12. Ne1 {[%clk 0:02:45]}  f5 {[%clk 0:02:50]} 13. exf5 {[%clk 0:02:43]}  Bxf5 {[%clk 0:02:50]} 14. Nc2 {[%clk 0:02:43]}  Kh8 {[%clk 0:02:43]} 15. Ne3 {[%clk 0:02:43]}  Bg6 {[%clk 0:02:42]} 16. a4 {[%clk 0:02:36]}  Ng5 {[%clk 0:02:42]} 17. h4 {[%clk 0:02:35]}  Ne6 {[%clk 0:02:41]} 18. Ba3 {[%clk 0:02:07]}  Nc5 {[%clk 0:02:29]} 19. Bxc5 {[%clk 0:02:07]}  dxc5 {[%clk 0:02:30]} 20. Bxc6 {[%clk 0:02:07]}  bxc6 {[%clk 0:02:30]} 21. Rxb8 {[%clk 0:02:06]}  Qxb8 {[%clk 0:02:31]} 22. Ng4 {[%clk 0:02:06]}  e4 {[%clk 0:01:55]} 23. Ne5 {[%clk 0:02:04]}  Bh7 {[%clk 0:01:54]} 24. Nd7 {[%clk 0:02:02]}  Qc8 {[%clk 0:01:53]} 25. Nxf8 {[%clk 0:02:01]}  Qxf8 {[%clk 0:01:54]} 26. d4 {[%clk 0:01:58]}  Bg8 {[%clk 0:01:48]} 27. d5 {[%clk 0:01:57]}  cxd5 {[%clk 0:01:49]} 28. cxd5 {[%clk 0:01:57]}  Qf6 {[%clk 0:01:43]} 29. c4 {[%clk 0:01:56]}  Qc3 {[%clk 0:01:41]} 30. Qc1 {[%clk 0:01:49]}  Qb4 {[%clk 0:01:33]} 31. Qc2 {[%clk 0:01:47]}  Bh7 {[%clk 0:01:30]} 32. Rb1 {[%clk 0:01:45]}  Qa3 {[%clk 0:01:29]} 33. Qb3 {[%clk 0:01:43]}  Qxb3 {[%clk 0:01:26]} 34. Rxb3 {[%clk 0:01:44]}  Kg8 {[%clk 0:01:26]} 35. Rb7 {[%clk 0:01:44]}  e3 {[%clk 0:01:25]} 36. fxe3 {[%clk 0:01:43]}  Bd3 {[%clk 0:01:26]} 37. Rxc7 {[%clk 0:01:43]}  Bxc4 {[%clk 0:01:27]} 38. Rxc5 {[%clk 0:01:43]}  Bb3 {[%clk 0:01:27]} 39. a5 {[%clk 0:01:38]} 1-0


[Site "https://www.chess.com"]

[Event "Titled Tuesday Blitz April 05 Late 2022"]
[White "Sztokbant, Bernardo Vainzoff"]
[Black "Sarkar, Justin"]
[WhiteFideId "2115956"]
[BlackFideId "2010011"]
[WhiteElo "2529"]
[BlackElo "2319"]
[Result "1-0"]
[Round "06"]
[TimeControl "180+1"]
[Date "2022.04.06"]
[WhiteClock "0:00:07"]
[BlackClock "0:00:01"]

1. e4 {[%clk 0:03:00]}  Nf6 {[%clk 0:02:58]} 2. Nc3 {[%clk 0:02:59]}  d5 {[%clk 0:02:54]} 3. exd5 {[%clk 0:02:58]}  Nxd5 {[%clk 0:02:54]} 4. Qf3 {[%clk 0:02:59]}  c6 {[%clk 0:02:50]} 5. Bc4 {[%clk 0:02:55]}  e6 {[%clk 0:02:40]} 6. d4 {[%clk 0:02:55]}  Nb6 {[%clk 0:02:39]} 7. Bd3 {[%clk 0:02:49]}  Qxd4 {[%clk 0:02:35]} 8. Nge2 {[%clk 0:02:49]}  Qf6 {[%clk 0:02:32]} 9. Qg3 {[%clk 0:02:47]}  N8d7 {[%clk 0:01:52]} 10. Bg5 {[%clk 0:02:41]}  Qe5 {[%clk 0:01:50]} 11. Bf4 {[%clk 0:02:41]}  Qh5 {[%clk 0:01:33]} 12. O-O-O {[%clk 0:02:34]}  Nd5 {[%clk 0:01:19]} 13. Bd2 {[%clk 0:02:30]}  Ne5 {[%clk 0:00:57]} 14. Be4 {[%clk 0:02:21]}  Nc4 {[%clk 0:00:53]} 15. Be1 {[%clk 0:01:28]}  Bd6 {[%clk 0:00:45]} 16. Qxg7 {[%clk 0:01:26]}  Be5 {[%clk 0:00:41]} 17. g4 {[%clk 0:01:10]}  Qh4 {[%clk 0:00:07]} 18. f4 {[%clk 0:01:05]}  Bxg7 {[%clk 0:00:06]} 19. Bxh4 {[%clk 0:01:05]}  O-O {[%clk 0:00:02]} 20. Rd3 {[%clk 0:00:54]}  Nxc3 {[%clk 0:00:02]} 21. Nxc3 {[%clk 0:00:53]}  f5 {[%clk 0:00:02]} 22. gxf5 {[%clk 0:00:50]}  exf5 {[%clk 0:00:03]} 23. Bf3 {[%clk 0:00:45]}  Be6 {[%clk 0:00:03]} 24. Rg1 {[%clk 0:00:38]}  Kh8 {[%clk 0:00:03]} 25. b3 {[%clk 0:00:36]}  Nb6 {[%clk 0:00:03]} 26. Re1 {[%clk 0:00:31]}  Bf7 {[%clk 0:00:02]} 27. Re7 {[%clk 0:00:28]}  Rae8 {[%clk 0:00:02]} 28. Rxb7 {[%clk 0:00:24]}  Bh6 {[%clk 0:00:01]} 29. Bf6+ {[%clk 0:00:20]}  Kg8 {[%clk 0:00:01]} 30. Bg5 {[%clk 0:00:16]}  Bxg5 {[%clk 0:00:01]} 31. fxg5 {[%clk 0:00:17]}  Nd5 {[%clk 0:00:01]} 32. Nxd5 {[%clk 0:00:16]}  Bxd5 {[%clk 0:00:02]} 33. Bxd5+ {[%clk 0:00:14]}  cxd5 {[%clk 0:00:02]} 34. Rxa7 {[%clk 0:00:15]}  Rf7 {[%clk 0:00:01]} 35. Rxf7 {[%clk 0:00:14]}  Kxf7 {[%clk 0:00:01]} 36. Rxd5 {[%clk 0:00:15]}  Kg6 {[%clk 0:00:02]} 37. h4 {[%clk 0:00:14]}  f4 {[%clk 0:00:02]} 38. Rd6+ {[%clk 0:00:13]}  Kf5 {[%clk 0:00:02]} 39. Rf6+ {[%clk 0:00:13]}  Kg4 {[%clk 0:00:02]} 40. a4 {[%clk 0:00:11]}  f3 {[%clk 0:00:03]} 41. b4 {[%clk 0:00:11]}  Kg3 {[%clk 0:00:03]} 42. Kb2 {[%clk 0:00:09]}  f2 {[%clk 0:00:03]} 43. a5 {[%clk 0:00:09]}  Kg2 {[%clk 0:00:03]} 44. b5 {[%clk 0:00:07]}  f1=Q {[%clk 0:00:02]} 45. Rxf1 {[%clk 0:00:08]}  Kxf1 {[%clk 0:00:03]} 46. b6 {[%clk 0:00:08]}  Kg2 {[%clk 0:00:01]} 47. a6 {[%clk 0:00:07]} 1-0


[Site "https://www.chess.com"]

[Event "Titled Tuesday Blitz April 05 Late 2022"]
[White "Tanenbaum, Zachary"]
[Black "Gogolev, Artem"]
[WhiteFideId "2060850"]
[BlackFideId "4116615"]
[WhiteElo "2168"]
[BlackElo "2126"]
[Result "1-0"]
[Round "06"]
[TimeControl "180+1"]
[Date "2022.04.05"]
[WhiteClock "0:01:15"]
[BlackClock "0:00:09"]

1. e4 {[%clk 0:02:59]}  c6 {[%clk 0:02:48]} 2. d4 {[%clk 0:03:00]}  d5 {[%clk 0:02:47]} 3. exd5 {[%clk 0:03:01]}  cxd5 {[%clk 0:02:46]} 4. Bd3 {[%clk 0:03:01]}  Nc6 {[%clk 0:02:46]} 5. c3 {[%clk 0:03:02]}  Nf6 {[%clk 0:02:46]} 6. Bf4 {[%clk 0:03:02]}  Bg4 {[%clk 0:02:45]} 7. Qb3 {[%clk 0:03:02]}  Qc8 {[%clk 0:02:31]} 8. Nd2 {[%clk 0:03:02]}  e6 {[%clk 0:02:31]} 9. Ngf3 {[%clk 0:03:01]}  Be7 {[%clk 0:02:31]} 10. O-O {[%clk 0:03:01]}  O-O {[%clk 0:02:31]} 11. Qc2 {[%clk 0:03:02]}  Bh5 {[%clk 0:02:21]} 12. Ne5 {[%clk 0:03:02]}  Bg6 {[%clk 0:02:20]} 13. Nxg6 {[%clk 0:03:02]}  hxg6 {[%clk 0:02:21]} 14. Nf3 {[%clk 0:03:03]}  Qd8 {[%clk 0:02:16]} 15. Qe2 {[%clk 0:03:02]}  Bd6 {[%clk 0:02:16]} 16. Bxd6 {[%clk 0:03:02]}  Qxd6 {[%clk 0:02:16]} 17. Ne5 {[%clk 0:03:03]}  a6 {[%clk 0:02:10]} 18. a4 {[%clk 0:03:03]}  Rab8 {[%clk 0:02:09]} 19. f4 {[%clk 0:03:03]}  Ne7 {[%clk 0:01:59]} 20. Rf3 {[%clk 0:03:02]}  b5 {[%clk 0:01:44]} 21. axb5 {[%clk 0:03:01]}  axb5 {[%clk 0:01:45]} 22. Rh3 {[%clk 0:02:42]}  Nf5 {[%clk 0:01:32]} 23. Ra7 {[%clk 0:02:39]}  b4 {[%clk 0:01:25]} 24. Rxf7 {[%clk 0:02:38]}  bxc3 {[%clk 0:01:18]} 25. bxc3 {[%clk 0:02:37]}  Qa3 {[%clk 0:01:04]} 26. Rxf8+ {[%clk 0:02:34]}  Rxf8 {[%clk 0:01:05]} 27. Nxg6 {[%clk 0:02:20]}  Re8 {[%clk 0:00:52]} 28. Rh8+ {[%clk 0:01:51]}  Kf7 {[%clk 0:00:45]} 29. Ne5+ {[%clk 0:01:51]}  Ke7 {[%clk 0:00:44]} 30. Rxe8+ {[%clk 0:01:52]}  Kxe8 {[%clk 0:00:34]} 31. Qe1 {[%clk 0:01:22]}  Ne4 {[%clk 0:00:20]} 32. Qb1 {[%clk 0:01:15]}  Qxc3 {[%clk 0:00:13]} 33. Qb8+ {[%clk 0:01:15]}  Ke7 {[%clk 0:00:10]} 34. Qb7+ {[%clk 0:01:15]}  Kd8 {[%clk 0:00:09]} 35. Qd7# {[%clk 0:01:15]} 1-0


[Site "https://www.chess.com"]

[Event "Titled Tuesday Blitz April 05 Late 2022"]
[White "Unver, Cumali"]
[Black "Gatterer, Florian"]
[WhiteFideId "6304940"]
[BlackFideId "811688"]
[WhiteElo "2013"]
[BlackElo "2218"]
[Result "0-1"]
[Round "06"]
[TimeControl "180+1"]
[Date "2022.04.06"]
[WhiteClock "0:00:21"]
[BlackClock "0:00:11"]

1. e4 {[%clk 0:03:00]}  d5 {[%clk 0:02:59]} 2. exd5 {[%clk 0:03:00]}  Qxd5 {[%clk 0:03:00]} 3. Nc3 {[%clk 0:03:00]}  Qd8 {[%clk 0:03:00]} 4. Nf3 {[%clk 0:03:00]}  Nf6 {[%clk 0:03:00]} 5. d4 {[%clk 0:03:00]}  Bg4 {[%clk 0:02:59]} 6. h3 {[%clk 0:03:00]}  Bh5 {[%clk 0:02:57]} 7. g4 {[%clk 0:03:00]}  Bg6 {[%clk 0:02:56]} 8. Ne5 {[%clk 0:03:00]}  c6 {[%clk 0:02:45]} 9. Bg2 {[%clk 0:02:51]}  Nfd7 {[%clk 0:02:38]} 10. Nxg6 {[%clk 0:02:48]}  hxg6 {[%clk 0:02:38]} 11. O-O {[%clk 0:02:47]}  e6 {[%clk 0:02:38]} 12. Bf4 {[%clk 0:02:44]}  Nf6 {[%clk 0:02:35]} 13. Re1 {[%clk 0:02:37]}  Be7 {[%clk 0:02:30]} 14. Ne4 {[%clk 0:02:24]}  Nxe4 {[%clk 0:02:25]} 15. Rxe4 {[%clk 0:02:25]}  Nd7 {[%clk 0:02:22]} 16. c3 {[%clk 0:02:20]}  Nf6 {[%clk 0:02:12]} 17. Re2 {[%clk 0:02:17]}  Bd6 {[%clk 0:02:11]} 18. Bg5 {[%clk 0:02:06]}  O-O {[%clk 0:02:07]} 19. h4 {[%clk 0:01:53]}  Qc7 {[%clk 0:01:59]} 20. Bf3 {[%clk 0:01:52]}  Bf4 {[%clk 0:01:58]} 21. Bxf6 {[%clk 0:01:44]}  gxf6 {[%clk 0:01:57]} 22. h5 {[%clk 0:01:44]}  gxh5 {[%clk 0:01:53]} 23. gxh5 {[%clk 0:01:44]}  Kh8 {[%clk 0:01:53]} 24. Qd3 {[%clk 0:01:41]}  Rg8+ {[%clk 0:01:34]} 25. Kh1 {[%clk 0:01:41]}  Rg5 {[%clk 0:01:26]} 26. Ree1 {[%clk 0:01:31]}  Bh2 {[%clk 0:01:19]} 27. Qe4 {[%clk 0:01:21]}  Rag8 {[%clk 0:01:13]} 28. Qh4 {[%clk 0:01:18]}  Bf4 {[%clk 0:00:58]} 29. Rg1 {[%clk 0:01:17]}  Rxg1+ {[%clk 0:00:55]} 30. Rxg1 {[%clk 0:01:17]}  Bg5 {[%clk 0:00:54]} 31. Qe4 {[%clk 0:01:11]}  a6 {[%clk 0:00:45]} 32. b3 {[%clk 0:01:08]}  Qa5 {[%clk 0:00:33]} 33. Qc2 {[%clk 0:01:05]}  Bf4 {[%clk 0:00:26]} 34. Rxg8+ {[%clk 0:01:04]}  Kxg8 {[%clk 0:00:25]} 35. a4 {[%clk 0:00:41]}  Qg5 {[%clk 0:00:24]} 36. b4 {[%clk 0:00:36]}  f5 {[%clk 0:00:20]} 37. c4 {[%clk 0:00:33]}  Kg7 {[%clk 0:00:20]} 38. b5 {[%clk 0:00:33]}  axb5 {[%clk 0:00:19]} 39. axb5 {[%clk 0:00:34]}  cxb5 {[%clk 0:00:19]} 40. c5 {[%clk 0:00:33]}  Qh4+ {[%clk 0:00:17]} 41. Kg1 {[%clk 0:00:33]}  b4 {[%clk 0:00:16]} 42. Bxb7 {[%clk 0:00:26]}  Qxh5 {[%clk 0:00:15]} 43. Bg2 {[%clk 0:00:23]}  Qh2+ {[%clk 0:00:13]} 44. Kf1 {[%clk 0:00:23]}  Qh5 {[%clk 0:00:13]} 45. Qb2 {[%clk 0:00:21]}  Qd1# {[%clk 0:00:11]} 0-1


[Site "https://www.chess.com"]

[Event "Titled Tuesday Blitz April 05 Late 2022"]
[White "Vovk, Orest"]
[Black "Javakhadze, Zurab"]
[WhiteFideId "14113490"]
[BlackFideId "13603647"]
[WhiteElo "2512"]
[BlackElo "2638"]
[Result "0-1"]
[Round "06"]
[TimeControl "180+1"]
[Date "2022.04.06"]
[WhiteClock "0:00:01"]
[BlackClock "0:00:08"]

1. h4 {[%clk 0:03:00]}  e5 {[%clk 0:02:59]} 2. h5 {[%clk 0:02:57]}  h6 {[%clk 0:02:59]} 3. Nc3 {[%clk 0:02:55]}  d5 {[%clk 0:02:57]} 4. e4 {[%clk 0:02:53]}  d4 {[%clk 0:02:51]} 5. Nce2 {[%clk 0:02:48]}  Bg4 {[%clk 0:02:43]} 6. Nf3 {[%clk 0:02:37]}  Nc6 {[%clk 0:02:26]} 7. Ng3 {[%clk 0:02:19]}  Nf6 {[%clk 0:02:23]} 8. Bc4 {[%clk 0:02:17]}  Qd7 {[%clk 0:02:19]} 9. d3 {[%clk 0:02:15]}  Bb4+ {[%clk 0:02:12]} 10. Bd2 {[%clk 0:02:13]}  Bxd2+ {[%clk 0:02:12]} 11. Qxd2 {[%clk 0:02:12]}  O-O-O {[%clk 0:01:58]} 12. O-O-O {[%clk 0:02:03]}  a6 {[%clk 0:01:47]} 13. Rdf1 {[%clk 0:02:00]}  Ne8 {[%clk 0:01:36]} 14. Nh4 {[%clk 0:01:53]}  Nd6 {[%clk 0:01:34]} 15. Bb3 {[%clk 0:01:50]}  Be6 {[%clk 0:01:34]} 16. f4 {[%clk 0:01:44]}  Bxb3 {[%clk 0:01:26]} 17. axb3 {[%clk 0:01:44]}  exf4 {[%clk 0:01:18]} 18. Qxf4 {[%clk 0:01:43]}  Nb4 {[%clk 0:01:07]} 19. e5 {[%clk 0:01:25]}  Qc6 {[%clk 0:01:03]} 20. Qd2 {[%clk 0:01:24]}  Qc5 {[%clk 0:00:49]} 21. exd6 {[%clk 0:01:15]}  Qa5 {[%clk 0:00:46]} 22. Kd1 {[%clk 0:01:11]}  Rxd6 {[%clk 0:00:37]} 23. Rxf7 {[%clk 0:00:49]}  Re8 {[%clk 0:00:31]} 24. Ne4 {[%clk 0:00:35]}  Rc6 {[%clk 0:00:31]} 25. c4 {[%clk 0:00:31]}  dxc3 {[%clk 0:00:26]} 26. bxc3 {[%clk 0:00:27]}  Qa1+ {[%clk 0:00:20]} 27. Qc1 {[%clk 0:00:22]}  Qa2 {[%clk 0:00:16]} 28. Rf2 {[%clk 0:00:09]}  Qxb3+ {[%clk 0:00:14]} 29. Ke2 {[%clk 0:00:09]}  Nxd3 {[%clk 0:00:13]} 30. Kxd3 {[%clk 0:00:07]}  Qc4+ {[%clk 0:00:11]} 31. Kd2 {[%clk 0:00:07]}  Qxe4 {[%clk 0:00:10]} 32. Nf3 {[%clk 0:00:01]}  Qe3+ {[%clk 0:00:08]} 33. Kc2 {[%clk 0:00:02]}  Qxf2+ {[%clk 0:00:08]} 34. Kb1 {[%clk 0:00:02]}  Rb6+ {[%clk 0:00:08]} 35. Ka1 {[%clk 0:00:02]}  Qc5 {[%clk 0:00:08]} 36. Rd1 {[%clk 0:00:01]}  Qa5+ {[%clk 0:00:08]} 0-1


[Site "https://www.chess.com"]